Cogmind - Beta 16 @@@ ROGUE MODE // 2025.10.27 @ 20:57:18 Player: Blaj Result: Destroyed by H-55 Commando with Gauss Rifle Performance ------------- Evolutions (3) 1500 Regions Visited (8) 1600 Robots Destroyed (174) 870 Value Destroyed (4560) 4560 Prototype IDs (9) 180 Alien Tech Used (0) 0 Bonus (376) 376 TOTAL SCORE: 9086 Bonus ------- High Alert Combat Kills 407 Follower Combat Kills 80 Friendly Fire -111 Cogmind --------- Core Integrity 0/700 Matter 165/300 Energy 100/100 System Corruption 0% Temperature Cool (0) Movement Rolling (125) Ox3 Location -7/Factory Parts ------- > --- POWER (1) -------- (None) > --- PROPULSION (3) --- Armored Wheel > --- UTILITY (7) ------ High-capacity Storage Unit Improved Terrain Scanner Advanced Terrain Scan Processor Improved Utility Shielding Hacking Suite Hacking Suite > --- WEAPON (2) ------- Power Maul > --- INVENTORY (20) --- Improved Hover Unit Airjet Improved Cooling System Large Battery (200) Machine Analyzer Transmission Jammer Advanced ECM Suite Improved Medium Armor Plating Hacking Suite High-powered Tractor Beam Gatling Laser Heavy Ion Cannon Minigun Rocket Array Rocket Array Remote Datajack Peak State ------------ > --- POWER ------------ Improved Deuterium Engine > --- PROPULSION ------- Compact Wheel Armored Wheel Armored Wheel > --- UTILITY ---------- Improved Cooling System High-capacity Storage Unit Advanced Terrain Scan Processor Improved Salvage Targeting Computer Transmission Jammer Improved Utility Shielding Hacking Suite > --- WEAPON ----------- Gatling Laser Precision Assault Rifle > --- INVENTORY -------- Heavy Ion Engine Light Nuclear Core Large Battery Machine Analyzer Improved Terrain Scanner Seismic Detector Advanced ECM Suite Improved Utility Shielding Improved Medium Armor Plating Improved Medium Armor Plating Improved EM Pulse Cannon Improved EM Pulse Cannon Heavy Ion Cannon Autogun Grenade Launcher Heavy Rocket Launcher Remote Datajack Power Maul Signal Generator [Rating: 47] Favorites ----------- Power Improved Deuterium Engine Engine Improved Deuterium Engine Power Core Light Nuclear Core Propulsion Armored Wheel Treads Improved Treads Leg Aluminum Leg Wheel Armored Wheel Hover Unit Airjet Utility Hacking Suite Device Seismic Detector Storage High-capacity Storage Unit Processor Advanced Terrain Scan Processor Hackware Hacking Suite Protection Improved Utility Shielding Weapon Assault Rifle Energy Gun Gatling Laser Energy Cannon EM Pulse Cannon Ballistic Gun Assault Rifle Launcher Heavy Rocket Launcher Special Weapon Mining Laser Impact Weapon Power Maul Special Melee Weapon Datajack Build | -11 -10 -10 -9 -9 -8 -7 -7 -7 ------- Run | Yrd Mat Min Mat Min Mat Fac Was Fac Slots Evolved 6 | . . . 2 . 2 2 . . Power . | . . . . . . . . . Propulsion 1 | . . . . . 1 . . . Utility 5 | . . . 2 . 1 2 . . Weapon . | . . . . . . . . . Parts Attached 105 | 4 11 5 7 11 21 17 1 28 Power 11 | . . . . 2 4 2 . 3 Engine 9 | . . . . 2 3 2 . 2 Core 2 | . . . . . 1 . . 1 Reactor . | . . . . . . . . . Propulsion 26 | 2 5 2 . 4 4 . . 9 Treads 2 | . 2 . . . . . . . Leg . | . . . . . . . . . Wheel 23 | 2 3 2 . 4 4 . . 8 Hover 1 | . . . . . . . . 1 Flight . | . . . . . . . . . Utility 33 | 2 2 1 6 . 5 11 . 6 Device 15 | 2 2 1 2 . 2 4 . 2 Storage 2 | . . . 2 . . . . . Processor 6 | . . . 1 . . 3 . 2 Hackware 3 | . . . . . . 2 . 1 Protection 7 | . . . 1 . 3 2 . 1 Artifact . | . . . . . . . . . Weapon 35 | . 4 2 1 5 8 4 1 10 Energy Gun 8 | . . . . 2 3 . . 3 Energy Cannon 9 | . . . 1 . 2 3 . 3 Ballistic Gun 8 | . 3 2 . 1 1 . . 1 Ballistic Cannon . | . . . . . . . . . Launcher 6 | . . . . 1 1 . 1 3 Special Weapon 2 | . . . . 1 . 1 . . Impact Weapon 1 | . . . . . 1 . . . Slashing Weapon . | . . . . . . . . . Piercing Weapon . | . . . . . . . . . Special Melee Weapon 1 | . 1 . . . . . . . Unidentified Prototypes 5 | . . . . . 3 1 . 1 Parts Lost 36 | . . 8 . 4 1 2 . 21 Power 9 | . . 1 . 1 1 1 . 5 Propulsion 13 | . . 3 . 2 . 1 . 7 Utility 7 | . . 1 . . . . . 6 Weapon 7 | . . 3 . 1 . . . 3 Highest Loss Streak 6 | . . 6 . 4 1 1 . 4 To Critical Strikes . | . . . . . . . . . Average Backups 16 | 6 7 5 14 19 18 18 19 17 Power 1 | 1 . . . . . 1 2 1 Propulsion 2 | 4 3 2 4 5 3 1 . . Utility 6 | . 2 2 5 6 7 8 10 8 Weapon 5 | 1 1 . 3 5 5 6 6 6 Tool/Special . | . . . . . . . . . Unused Backups 30 | . 6 . 2 2 8 4 . 8 Power 2 | . . . . . 2 . . . Propulsion 11 | . 4 . 2 . 3 1 . 1 Utility 11 | . . . . 2 1 3 . 5 Weapon 6 | . 2 . . . 2 . . 2 Tool/Special . | . . . . . . . . . Average Slot Usage (%) 95 | . 100 67 82 97 99 99 100 96 Engine 6 | . 14 2 . 9 8 7 7 4 Wheel 22 | . 27 19 22 21 27 22 23 20 Device 14 | . 14 5 22 21 14 12 15 14 Storage 8 | . 14 14 11 11 9 7 7 7 Processor 7 | . . . 7 11 6 6 15 9 Hackware 7 | . . . . . . 14 15 12 Protection 6 | . . . . . 14 9 . 7 Energy Gun 2 | . . . . 10 3 . . 3 Energy Cannon 5 | . . . 8 5 11 7 . 3 Ballistic Gun 6 | . 27 18 11 3 1 2 . 3 Launcher 1 | . . . . 1 . . 14 . Impact Weapon 1 | . . . . . 1 3 . 2 Peak Build Rating 47 | 9 9 9 14 20 33 44 40 47 Average Rating 29 | 6 7 5 12 15 28 39 40 40 On Entrance 19 | 6 9 8 5 13 20 30 40 40 Avg Prop Armor Cover (%) 4 | . . . . . . . . 4 Naked Turns . | . . . . . . . . . Heaviest Build 75 | 14 16 15 49 52 70 75 64 74 Greatest Support 48 | 32 32 46 26 26 38 40 40 48 Greatest Overweight (x) 5 | . . 2 1 2 2 2 1 5 Average Overweight (x) 1 | . . . . 1 1 1 1 1 Largest Inventory Capacity 20 | 8 8 8 20 20 20 20 20 20 Average Capacity 17 | 8 8 8 17 20 20 20 20 20 Most Carried 20 | 7 8 8 20 20 20 20 20 20 Average Carried 16 | 6 7 5 15 19 19 19 20 17 Final Capacity 20 | 8 8 8 20 20 20 20 20 20 Final Carried 20 | 7 8 7 20 20 20 20 20 16 Class Distribution -------------------- 42% | Hacker-Mutant 32% | Mutant 23% | Scavenger-Mutant Dominant Class ---------------- Mutant | -10/Materials Mutant | -10/Mines Scavenger-Mutant | -9/Materials Scavenger-Mutant | -9/Mines Mutant | -8/Materials Hacker-Mutant | -7/Factory Hacker-Mutant | -7/Waste Hacker-Mutant | -7/Factory Resources | -11 -10 -10 -9 -9 -8 -7 -7 -7 ----------- Run | Yrd Mat Min Mat Min Mat Fac Was Fac Matter Collected 4274 | 250 316 266 96 245 367 869 577 1288 Remotely 99 | 53 . 46 . . . . . . Salvage Created 7140 | 90 375 204 327 241 819 1385 1198 2501 Parts 274 | 5 29 6 17 16 39 47 8 107 Haulers Intercepted 9 | . . . . . 3 5 . 1 Recyclers Shooed 7 | . 1 . 1 1 1 1 . 2 Parts Field Recycled . | . . . . . . . . . Retrieved Matter . | . . . . . . . . . Parts Self-Destructed . | . . . . . . . . . Prevented . | . . . . . . . . . Parts Restored . | . . . . . . . . . Kills | -11 -10 -10 -9 -9 -8 -7 -7 -7 ------- Run | Yrd Mat Min Mat Min Mat Fac Was Fac Combat Hostiles Destroyed 101 | . 8 10 3 7 12 15 6 40 Guns 32 | . 8 10 1 4 . 2 . 7 Cannons 20 | . . . 2 . 3 7 . 8 AOE 42 | . . . . 3 6 5 6 22 Classes Destroyed 18 | 2 5 1 1 1 1 6 1 . Worker 21 | . 3 2 . 2 1 4 . 9 Builder 10 | . . . . 1 1 . . 8 Tunneler 4 | 1 . 1 1 . 1 . . . Hauler 9 | . . . . . 3 5 . 1 Recycler 22 | 1 1 . 2 2 1 5 . 10 Mechanic 3 | . . . . . . 3 . . Operator 5 | . 2 . . . 2 . . 1 Watcher 7 | . 1 . . . 2 1 . 3 Swarmer 19 | . 6 . . 6 . . . 7 Cutter 3 | . . . . . . 3 . . Grunt 39 | . 2 . . . 9 8 . 20 Brawler 1 | . . . . . . 1 . . Duelist 3 | . . . . . . 1 . 2 Sentry 11 | . . . 3 . 3 1 . 4 Hunter 3 | . . . . . . 1 . 2 Programmer 7 | . . . . . . 2 . 5 Compactor 6 | . . . . . . . 6 . Assembled 10 | . . 10 . . . . . . Best Kill Streak 16 | 2 3 5 2 4 4 9 3 16 Combat Bots Only 8 | . 3 5 2 3 3 6 3 8 Max Kills in Single Turn 5 | 1 1 1 1 3 3 5 1 5 Gunslinging . | . . . . . . . . . Exploded 4 | . . . . 2 2 2 1 4 Melee . | . . . . . . . . . Uniques/NPCs Destroyed 1 | . . . . 1 . . . . YI-UF0 (-9/Mines) Combat | -11 -10 -10 -9 -9 -8 -7 -7 -7 -------- Run | Yrd Mat Min Mat Min Mat Fac Was Fac Hostile Shots Fired 582 | . 28 67 8 24 35 98 . 322 Missed 179 | . 8 9 2 4 15 28 . 113 Hits 403 | . 20 58 6 20 20 70 . 209 Melee 14 | . . 6 . . . 4 . 4 Projectile 389 | . 20 52 6 20 20 66 . 205 AOE 13 | . . . . 13 . . . . Critical Strikes 10 | . . 1 1 . 1 2 . 5 Part Disruptions 1 | . . 1 . . . . . . Damage Taken 6243 | . 176 875 87 483 395 1125 27 3075 Core 1152 | . 63 149 14 143 70 140 9 564 Absorbed by Shields . | . . . . . . . . . Redirected to Shielding 207 | . . . . . 10 51 . 146 Regen/Repaired (Parts) 641 | . . . . . 81 104 . 456 Core Remaining (%) 65 | 100 . 15 . 60 87 . . . Volleys Fired 332 | 5 28 39 15 25 37 59 24 100 Largest 2 | 2 2 2 2 2 2 2 2 2 Hottest 160 | 40 40 40 88 124 126 136 69 160 Shots Fired 562 | 10 56 62 25 37 64 95 42 171 Gun 281 | 10 56 62 14 16 5 22 . 96 Cannon 195 | . . . 11 10 56 56 . 62 Launcher 66 | . . . . 2 3 7 41 13 Special 20 | . . . . 9 . 10 1 . Kinetic 232 | 10 56 62 14 4 4 22 . 60 Thermal 128 | . . . 11 29 . 37 . 51 Explosive 66 | . . . . 2 3 7 41 13 Electromagnetic 125 | . . . . 2 57 19 . 47 Robot Hit Streak 18 | 3 6 8 18 15 13 11 15 15 Robot Miss Streak 4 | 1 4 3 2 1 2 4 1 4 Penetration Max . | . . . . . . . . . Secondary Targets 4 | . 1 3 . . . . . . Max Gunslinging Chain 1 | . 1 1 . . . . . . Shots Hit Robots 421 | 7 32 43 19 23 47 93 28 129 Core Hits 283 | 3 17 22 6 14 24 57 15 125 Critical Kills 3 | . 1 . . . . 2 . . Critical Parts Destroyed 7 | . . 1 . . . 4 . 2 Critical Strikes 13 | . 1 1 . . 2 6 . 3 Destroy 2 | . 1 1 . . . . . . Corrupt 3 | . . . . . 2 . . 1 Smash 8 | . . . . . . 6 . 2 Melee Attacks 65 | . 2 . . 1 3 33 . 26 Impact 59 | . . . . . 3 30 . 26 Slashing . | . . . . . . . . . Piercing . | . . . . . . . . . Sneak Attacks 25 | . 2 . . 1 . 16 . 6 Combat Hostiles . | . . . . . . . . . Follow-up Attacks . | . . . . . . . . . Damage Inflicted 18337 | 73 374 541 325 519 2375 3722 3044 7364 Guns 3367 | 73 374 541 121 210 90 396 . 1562 Cannons 3700 | . . . 204 142 1088 1017 . 1249 Explosions 9164 | . . . . 167 1181 897 3044 3875 Melee 2090 | . . . . . . 1412 . 678 Ramming 16 | . . . . . 16 . . . Kinetic 2398 | 73 374 541 121 46 65 396 . 782 Thermal 3967 | . . . 204 273 596 581 . 2313 Explosive 7324 | . . . . 167 585 897 3044 2631 Electromagnetic 2542 | . . . . 33 1113 436 . 960 Impact 2090 | . . . . . . 1412 . 678 Slashing . | . . . . . . . . . Piercing . | . . . . . . . . . Highest Corruption 3 | . . . 2 2 2 3 3 3 Average Corruption 2 | . . . 2 2 2 2 3 1 Corruption Purged 6 | . . . . . . . . 6 Corruption Blocked . | . . . . . . . . . Effects 60 | . . . 6 9 6 13 7 19 Message Errors 14 | . . . 1 1 2 4 1 5 Matter Fused 14 | . . . 1 3 2 2 2 4 Heat Flow Errors 8 | . . . 1 2 1 3 . 1 Energy Discharges 4 | . . . . 1 . 1 . 2 Parts Rejected 1 | . . . . . . . . 1 Parts Fused 2 | . . . . . . 1 . 1 Data Loss (minor) 12 | . . . 1 2 1 1 2 5 Misfires 2 | . . . . . . . 2 . Weapon Failures 3 | . . . 2 . . 1 . . Overload Shots . | . . . . . . . . . Overflow Damage 1651 | . . . 16 . 118 834 . 683 Projectiles 103 | . . . 16 . 5 29 . 53 Explosions 507 | . . . . . 113 94 . 300 Melee 1041 | . . . . . . 711 . 330 Knockbacks 4 | . . . . . . 2 . 2 Impact 4 | . . . . . . 2 . 2 Kinetic . | . . . . . . . . . Secondary . | . . . . . . . . . Self-Inflicted Damage 669 | . . . . . 100 149 28 392 Shots 22 | . . . . . 2 5 2 13 Rammed . | . . . . . . . . . Targets Rammed . | . . . . . . . . . Kicked . | . . . . . . . . . Crushed . | . . . . . . . . . Highest Temperature 311 | . . 8 178 208 173 270 . 311 Average Temperature 58 | . . 7 21 48 58 70 . 66 Received Heat Transfer 1469 | . 24 140 45 . 144 204 . 912 Siege Activations . | . . . . . . . . . Martial Activations . | . . . . . . . . . Shielding Activations . | . . . . . . . . . Robots Disrupted . | . . . . . . . . . Combat Hostiles . | . . . . . . . . . Robots Corrupted 12 | . . . . . 3 5 . 4 Combat Hostiles 6 | . . . . . 3 1 . 2 Parts Fried 34 | . . . . . 12 13 . 9 Impact Corruptions 26 | . . . . . . 13 . 13 Robots Melted 1 | . . . . . . . . 1 Combat Hostiles 1 | . . . . . . . . 1 Parts Melted 12 | . . . 1 . . 2 . 9 Heat Transferred 5394 | . . . 370 592 550 999 . 2883 Parts Sabotaged . | . . . . . . . . . Parts Stolen . | . . . . . . . . . Parts Stripped . | . . . . . . . . . Power Chain Reactions 4 | . . . . . 4 . . . Alert | -11 -10 -10 -9 -9 -8 -7 -7 -7 ------- Run | Yrd Mat Min Mat Min Mat Fac Was Fac Maximum Alert Level 3 | . . . . . 2 2 . 3 Low Security (%) 70 | 100 100 100 100 100 64 59 100 44 Level 1 11 | . . . . . 34 23 . 6 Level 2 17 | . . . . . . 16 . 45 Level 3 . | . . . . . . . . 3 Level 4 . | . . . . . . . . . Level 5 . | . . . . . . . . . High Security . | . . . . . . . . . Max Security . | . . . . . . . . . Peak Influence 1013 | 5 85 30 60 88 402 453 155 1013 Initial 158 | . 3 15 5 . . 158 155 17 Average 171 | 2 28 2 9 18 173 186 101 330 Influence Increases 4335 | 10 285 60 139 182 724 846 108 1981 Destroy 0b10 Robot/C 1720 | . 160 . 60 120 240 340 . 800 Destroy 0b10 Robot/NC 405 | 10 35 15 15 25 55 90 . 160 Destroy Leader 440 | . 32 . 30 20 60 80 . 218 Allied During Kill 9 | . . . . . . 9 . . Trap Triggered on 0b10 20 | . . . . . . . . 20 Successful Hack 209 | . 12 . 19 . 20 90 . 68 Select Force Hacks 50 | . . . . . . . . 50 Disable Machine 405 | . . 15 . . 105 90 . 195 Destroy Structure 492 | . 1 . . 17 79 72 108 215 Partial Spotted 30 | . . . . . 30 . . . Lose Combat Pursuer 555 | . 45 30 15 . 135 75 . 255 Influence Decreases 3344 | 5 251 85 153 182 374 752 527 1015 Entered New Map 524 | . 2 24 9 . . 192 289 8 Time Decay 2250 | 5 249 61 144 142 364 540 238 507 Lost Part 270 | . . . . 40 10 20 . 200 Purge Threat 300 | . . . . . . . . 300 Squads Dispatched 38 | . 3 . . 2 1 7 . 25 Investigation 12 | . 1 . . 1 . 1 . 9 Extermination 10 | . . . . . . 4 . 6 Reinforcement 10 | . 2 . . . 1 2 . 5 Assault 2 | . . . . 1 . . . 1 Garrison 4 | . . . . . . . . 4 Intercept . | . . . . . . . . . Searches Triggered . | . . . . . . . . . Construction Impeded 1 | . . . . . . . . 1 Haulers Reinforced 1 | . . . . . . . . 1 Active Scanning Responses . | . . . . . . . . . Cargo Convoy Interrupts . | . . . . . . . . . Stealth | -11 -10 -10 -9 -9 -8 -7 -7 -7 --------- Run | Yrd Mat Min Mat Min Mat Fac Was Fac Distress Signals 13 | . 1 1 3 . 5 1 . 2 Communications Jammed 5 | . . . . . . 2 . 3 Distress Signals 4 | . . . . . . 2 . 2 Times Spotted 221 | . 22 20 16 7 35 28 6 87 Peak Tracking Total 10 | . 6 6 6 3 7 6 3 10 Tactical Retreats 46 | . 6 6 1 . 13 6 . 14 ECM-based Alert Blocks 40 | . 8 . . . 11 6 . 15 Traps | -11 -10 -10 -9 -9 -8 -7 -7 -7 ------- Run | Yrd Mat Min Mat Min Mat Fac Was Fac Traps Triggered 10 | . 1 . 1 . . 2 . 6 Indirectly . | . . . . . . . . . Trap Hack Attempts . | . . . . . . . . . Triggered . | . . . . . . . . . Disarmed . | . . . . . . . . . Reprogrammed 4 | . . . . . . . . 4 Reused 2 | . . . . . . . . 2 Traps Extracted . | . . . . . . . . . Installed . | . . . . . . . . . Triggered 2 | . . . . . . . . 2 Objects Rigged 6 | . . . . . . . . 6 Exploded 1 | . . . . . . . . 1 Machines | -11 -10 -10 -9 -9 -8 -7 -7 -7 ---------- Run | Yrd Mat Min Mat Min Mat Fac Was Fac Machines Disabled 28 | . 1 1 . . 7 6 . 13 Max in Single Turn 6 | . 1 1 . . 2 4 . 6 Garrison Access 1 | . . . . . 1 . . . Machines Repaired . | . . . . . . . . . Machines Dismantled . | . . . . . . . . . Machines Sabotaged . | . . . . . . . . . Overloaded Fab Kills 2 | . . . . . . . . 2 Hacking | -11 -10 -10 -9 -9 -8 -7 -7 -7 --------- Run | Yrd Mat Min Mat Min Mat Fac Was Fac Machines Accessed 58 | . 4 . 5 1 12 14 . 22 Terminals 29 | . 3 . 5 . 8 4 . 9 Fabricators 6 | . . . . . . 2 . 4 Repair Stations 10 | . 1 . . . 1 4 . 4 Recycling Units 5 | . . . . . . 2 . 3 Scanalyzers 5 | . . . . . 2 2 . 1 Garrison Access 2 | . . . . . 1 . . 1 Total Hacks 155 | . 17 . 10 1 33 29 . 65 Successful 102 | . 6 . 4 1 26 17 . 48 Failed 53 | . 11 . 6 . 7 12 . 17 Catastrophic 4 | . . . . . . 3 . 1 Database Lockouts . | . . . . . . . . . Manual 38 | . 5 . 3 1 6 6 . 17 Terminals 75 | . 14 . 10 . 19 8 . 24 Fabricators 11 | . . . . . . 2 . 9 Repair Stations 27 | . 3 . . . 2 8 . 14 Recycling Units 13 | . . . . . . 4 . 9 Scanalyzers 24 | . . . . . 10 7 . 7 Garrison Access 4 | . . . . . 2 . . 2 Terminal Hacks 28 | . 4 . 2 1 11 2 . 8 Record 2 | . 1 . 1 . . . . . Part Schematic 1 | . . . . . 1 . . . Robot Schematic 1 | . . . . . . 1 . . Prototype ID Bank 1 | . . . . . 1 . . . Open Door 1 | . . . . 1 . . . . Level Access Points 1 | . . . . . . . . 1 Branch Access Points 3 | . 1 . . . 1 . . 1 Terminal Index 1 | . . . . . . . . 1 Scanalyzer Index 1 | . 1 . . . . . . . Alert Level 1 | . . . . . 1 . . . Unreport Threat 2 | . . . . . . . . 2 Locate Traps 4 | . . . . . 2 . . 2 Reprogram Traps 1 | . . . . . . . . 1 Dispatch Records 1 | . . . . . 1 . . . Patrol Status 1 | . . . . . . 1 . . Hauler Manifests 3 | . 1 . 1 . 1 . . . Registered Components 1 | . . . . . 1 . . . Zone Layout 2 | . . . . . 2 . . . Fabricator Hacks 7 | . . . . . . 1 . 6 Network Status 1 | . . . . . . . . 1 Load Schematic 3 | . . . . . . . . 3 Build 3 | . . . . . . 1 . 2 Repair Station Hacks 20 | . 1 . . . 2 5 . 12 Scan Component 12 | . 1 . . . 1 3 . 7 Repair 8 | . . . . . 1 2 . 5 Recycling Unit Hacks 6 | . . . . . . . . 6 Process 3 | . . . . . . . . 3 Report Inventory 1 | . . . . . . . . 1 Retrieve Matter 2 | . . . . . . . . 2 Scanalyzer 23 | . . . . . 10 6 . 7 Insert Component 6 | . . . . . 2 3 . 1 Analyze 8 | . . . . . 2 1 . 5 Retrieve Study 9 | . . . . . 6 2 . 1 Garrison Access Hacks 1 | . . . . . 1 . . . Seal Access 1 | . . . . . 1 . . . Unauthorized Hacks 17 | . 1 . 2 . 2 3 . 9 Terminals 12 | . 1 . 2 . 2 1 . 6 Track 2 | . . . . . . 1 . 1 Botnet 5 | . . . 1 . 1 . . 3 Detonate 1 | . . . . . . . . 1 Operators 4 | . 1 . 1 . 1 . . 1 Fabricators 1 | . . . . . . . . 1 Overload 1 | . . . . . . . . 1 Repair Stations . | . . . . . . . . . Recycling Units 4 | . . . . . . 2 . 2 Recyclers 1 | . . . . . . . . 1 Mask 3 | . . . . . . 2 . 1 Scanalyzers . | . . . . . . . . . Garrison Access . | . . . . . . . . . Data Cores Recovered . | . . . . . . . . . Used . | . . . . . . . . . Hacking Detections 48 | . 4 . 5 . 9 13 . 17 Full Trace Events 9 | . . . 1 . . 1 . 7 Feedback Events . | . . . . . . . . . Feedback Blocked . | . . . . . . . . . Robot Schematics Acquired 1 | . . . . . . 1 . . Robots Built 3 | . . . . . . 3 . . Authchips . | . . . . . . . . . Time 116 | . . . . . . 116 . . Total Robot Build Rating 9 | . . . . . . 9 . . Part Schematics Acquired 4 | . . . . . 3 1 . . Parts Built 3 | . . . . . . . . 3 Authchips . | . . . . . . . . . Time 67 | . . . . . . . . 67 Total Part Build Rating 7 | . . . . . . . . 7 Part Studies Acquired 8 | . . . . . 5 2 . 1 Parts Repaired 8 | . . . . . 1 2 . 5 Time 238 | . . . . . 26 38 . 174 Parts Recycled . | . . . . . . . . . Recycled Matter 17 | . . . . . . . . 17 Retrieved Matter 17 | . . . . . . . . 17 Retrieved Components . | . . . . . . . . . Parts Scanalyzed 5 | . . . . . 2 2 . 1 Part Schematics Acquired 3 | . . . . . 2 1 . . Parts Damaged 1 | . . . . . . 1 . . Bothacking | -11 -10 -10 -9 -9 -8 -7 -7 -7 ------------ Run | Yrd Mat Min Mat Min Mat Fac Was Fac Used RIF Installer . | . . . . . . . . . Robots Hacked 11 | . 1 . . 1 . 8 1 . Non-combat 9 | . 1 . . . . 8 . . Combat 2 | . . . . 1 . . 1 . Robot Hacks Applied 14 | . 2 . . 1 . 10 1 . parse_system 5 | . 1 . . 1 . 2 1 . no_distress 2 | . 1 . . . . 1 . . find_chute 1 | . . . . . . 1 . . find_fabricator 1 | . . . . . . 1 . . find_recycling 2 | . . . . . . 2 . . find_station 2 | . . . . . . 2 . . check_alert 1 | . . . . . . 1 . . Relay Couplers Released . | . . . . . . . . . Fabnet Peak Effective % . | . . . . . . . . . Robots Rewired . | . . . . . . . . . Allies Hacked . | . . . . . . . . . Hacks Repelled . | . . . . . . . . . Allies | -11 -10 -10 -9 -9 -8 -7 -7 -7 -------- Run | Yrd Mat Min Mat Min Mat Fac Was Fac Total Allies 4 | . . . . 1 . 3 . . Largest Group 3 | . . . . 1 1 3 . . Highest-Rated Group 75 | . . . . 31 31 75 . . Highest-Rated Ally 31 | . . . . 31 31 25 . . Total Orders . | . . . . . . . . . Ally Attacks 13 | . . . . . 4 9 . . Total Damage 425 | . . . . . 44 381 . . Kills 2 | . . . . . . 2 . . Allies Corrupted . | . . . . . . . . . Allies Melted . | . . . . . . . . . Intel | -11 -10 -10 -9 -9 -8 -7 -7 -7 ------- Run | Yrd Mat Min Mat Min Mat Fac Was Fac Active Infowar (turns) 7520 | 7 711 250 666 549 1058 1658 518 2103 Terrain 3766 | 7 87 . 627 541 432 930 . 1142 Structural 494 | . 320 174 . . . . . . Seismic 5656 | . . 76 659 549 1058 1277 518 1519 Jamming 1522 | . . . . . . 536 478 508 ECM 935 | . 304 . 28 . 175 266 20 142 Robot Analysis Total . | . . . . . . . . . Derelict Logs Recovered 2 | . . 1 . 1 . . . . Drone Launches . | . . . . . . . . . Drone Recoveries . | . . . . . . . . . Exploration | -11 -10 -10 -9 -9 -8 -7 -7 -7 ------------- Run | Yrd Mat Min Mat Min Mat Fac Was Fac Turns Passed 8700 | 39 711 602 666 549 1213 1841 518 2561 Spaces Moved 5959 | 18 611 416 463 350 741 1302 404 1654 Core 3 | . . 3 . . . . . . Treads 18 | . . 18 . . . . . . Legs 4 | 4 . . . . . . . . Wheels 5934 | 14 611 395 463 350 741 1302 404 1654 Hover . | . . . . . . . . . Flight . | . . . . . . . . . Fastest Speed 80 | 100 80 80 90 105 95 95 101 101 Average Speed 101 | 104 85 91 101 110 101 96 101 110 Slowest Speed 160 | 120 100 160 105 115 110 110 101 155 Overloaded Moves . | . . . . . . . . . Propulsion Burnouts . | . . . . . . . . . Robots Hopped . | . . . . . . . . . Potential Cave-ins 4 | . . . . 2 . 2 . . Cave-ins Triggered . | . . . . . . . . . Exploration Rate (%) 55 | 2 81 59 36 83 68 39 87 45 Regions Visited 8 Branch Regions 2 Pre-discovered Areas . | . . . . . . . . . Known Exits Taken 2 | . 1 . . . 1 . . . Unknown Exits Taken 4 | 1 . 1 1 1 . . . . Scrap Searched 1 | . . . . 1 . . . . Spaces Dug 115 | . . . . 5 3 52 14 41 Terrain Destroyed 693 | . . . . 22 94 86 232 259 Melee 28 | . . . . . 3 11 . 14 Projectile 11 | . . . . 8 . . . 3 AOE 654 | . . . . 14 91 75 232 242 Terrain Rammed 1 | . . . . . 1 . . . Walls Destroyed 1 | . . . . . 1 . . . Machines Disabled . | . . . . . . . . . Actions | -11 -10 -10 -9 -9 -8 -7 -7 -7 --------- Run | Yrd Mat Min Mat Min Mat Fac Was Fac Total 7886 | 27 742 572 634 457 1133 1724 471 2126 Wait 1070 | . 65 102 126 43 281 220 39 194 Move 5952 | 17 610 415 462 349 740 1302 403 1654 Hop . | . . . . . . . . . Pick Up 93 | 1 9 3 16 11 11 20 . 22 Fast Attach 39 | 1 1 2 3 3 8 5 . 16 Attach 40 | . . 4 3 5 5 6 . 17 Detach 17 | . . . 3 . 3 2 . 9 Swap 174 | 3 14 6 2 10 24 47 5 63 Drop 87 | . 13 1 4 10 20 22 . 17 Fire 332 | 5 28 39 15 25 37 59 24 100 Melee 65 | . 2 . . 1 3 33 . 26 Ram 1 | . . . . . 1 . . . Kick . | . . . . . . . . . Crush . | . . . . . . . . . Escape Stasis 16 | . . . . . . 8 . 8 Rewire . | . . . . . . . . . Trap . | . . . . . . . . . Miscellaneous . | . . . . . . . . . Route ------- -11/Scrapyard -10/Materials (discovered 3 exits: *Mat x2 / *Min) -10/Mines -9/Materials (discovered 2 exits: *Mat / *Min) -9/Mines (discovered 2 exits: *Mat x2) -8/Materials -7/Factory (discovered 4 exits: *Fac x2 / *Sto / *Low) -7/Waste -7/Factory (discovered 7 exits: *Fac x4 / Sto / *Low x2) History --------- Turn | Location | Event 1 | -11/Scrapyard | Discovered new exit (range 1) 40 | -11/Scrapyard | Entered Materials 200 | -10/Materials | Identified exit to Mines 239 | -10/Materials | Discovered new exit (range 16) 303 | -10/Materials | Build established: Mutant 603 | -10/Materials | Discovered new exit (range 15) 751 | -10/Materials | Entered Mines 767 | -10/Mines | Assembled infested the area 772 | -10/Mines | Assisted by a Guerilla fighting off Assembled 779 | -10/Mines | Met a Derelict bent on vengeance 810 | -10/Mines | Learned Materials emergency access door positions 904 | -10/Mines | Core integrity fell below 50% 968 | -10/Mines | Core integrity fell below 20% 1000 | -10/Mines | Lost 6 parts (3n1u2w) 1133 | -10/Mines | Discovered new exit (range 9) 1353 | -10/Mines | Entered Materials 1353 | -9/Materials | Evolved 2 slots: Utility x2 1539 | -9/Materials | Discovered new exit (range 16) 1646 | -9/Materials | Build established: Scavenger-Mutant 1797 | -9/Materials | Discovered new exit (range 14) 2019 | -9/Materials | Entered Mines 2045 | -9/Mines | Learned location of 1 exit from Materials 2098 | -9/Mines | YI-UF0 nonchalantly dropped a Grenade Launcher on the ground 2131 | -9/Mines | Destroyed YI-UF0 2161 | -9/Mines | Lost 4 parts (1p2n1w) 2292 | -9/Mines | Discovered new exit (range 14) 2372 | -9/Mines | Met a Derelict testing a Signal Generator 2382 | -9/Mines | Found Signal Generator 2518 | -9/Mines | Met a Derelict shopkeep closing up shop 2553 | -9/Mines | Discovered new exit (range 11) 2568 | -9/Mines | Entered Materials 2568 | -8/Materials | Accompanied by 1 ally 2568 | -8/Materials | Evolved 2 slots: Propulsion x1, Utility x1 2569 | -8/Materials | Identified exit to Factory 3229 | -8/Materials | Repaired Lgt. Armor Plating? 3351 | -8/Materials | Build established: Mutant 3781 | -8/Materials | Entered Factory 3781 | -7/Factory | Evolved 2 slots: Utility x2 4090 | -7/Factory | Build established: Hacker-Mutant 4454 | -7/Factory | Discovered new exit (range 15) 4535 | -7/Factory | Discovered new exit (range 15) 4568 | -7/Factory | Repaired Broken Arm. Wheel+ 4585 | -7/Factory | Repaired Arm. Wheel+ 4846 | -7/Factory | Fabricated C-17 Slicer? 4969 | -7/Factory | Discovered new exit (range 11) 5294 | -7/Factory | Discovered new exit (range 16) 5622 | -7/Factory | Sucked down chute 5622 | -7/Factory | Entered Waste 5655 | -7/Waste | Spotted C-40 Crusher 5664 | -7/Waste | Spotted C-40 Crusher 5721 | -7/Waste | Spotted C-40 Crusher 5728 | -7/Waste | Spotted C-40 Crusher 5733 | -7/Waste | Destroyed C-40 Crusher 5738 | -7/Waste | Spotted C-40 Crusher 5748 | -7/Waste | Destroyed C-40 Crusher 5753 | -7/Waste | Spotted C-40 Crusher 5757 | -7/Waste | Destroyed C-40 Crusher 5786 | -7/Waste | Destroyed C-40 Crusher 5820 | -7/Waste | Destroyed C-40 Crusher 5861 | -7/Waste | Destroyed C-40 Crusher 5913 | -7/Waste | Discovered new exit (range 15) 6139 | -7/Waste | Identified exit to Factory 6140 | -7/Waste | Entered Factory 6277 | -7/Factory | Fabricated Arm. Wheel (x2) 6543 | -7/Factory | Discovered new exit (range 5) 6549 | -7/Factory | Identified exit to Factory 6735 | -7/Factory | Identified exit to Storage 6735 | -7/Factory | Identified exit to Lower Caves 6807 | -7/Factory | Repaired Imp. Medium Armor Plating 6837 | -7/Factory | Discovered exit to Factory (range 14) 6993 | -7/Factory | Core integrity fell below 50% 7027 | -7/Factory | Build established: Mutant 7425 | -7/Factory | Found Prototype Launcher 7425 | -7/Factory | Identified Rocket Array 7430 | -7/Factory | Found Rocket Array 7434 | -7/Factory | Found Rocket Array 7616 | -7/Factory | Fabricated Hacking Suite? 7629 | -7/Factory | Lost 3 parts (2n1w) 7679 | -7/Factory | Discovered exit to Factory (range 15) 7795 | -7/Factory | Repaired Broken Arm. Wheel+? 7918 | -7/Factory | Garrison activated, responded to threat 8116 | -7/Factory | Build established: Hacker-Mutant 8309 | -7/Factory | Repaired Arm. Wheel+? 8349 | -7/Factory | Repaired Imp. Utility Shielding? 8395 | -7/Factory | Repaired Imp. Terrain Scanner 8533 | -7/Factory | Core integrity fell below 20% 8686 | -7/Factory | Garrison activated, responded to threat 8701 | -7/Factory | Destroyed by H-55 Commando with Gauss Rifle Last Messages --------------- 08689_ K-01 Serf collects debris. 08690_ U-05 Engineer lays Concrete. 08691_ U-05 Engineer builds a Wall. 08691_ R-06 Scavenger collects Imp. Heat Sink. 08691_ R-06 Scavenger destroyed. 08691_ K-01 Serf destroyed. 08691_ G-47 Trooper destroyed. 08691_ U-05 Engineer destroyed. 08691_ Imp. Medium Armor Plating destroyed. 08691_ Destroyed Imp. Medium Armor Plating. 08691_ Com. Wheel+ destroyed. 08691_ Destroyed Com. Wheel+. 08692_ G-47 Trooper destroyed. 08693_ Rocket Array destroyed. 08695_ Penetrated by Slug. 08695_ Deuterium Engine destroyed. 08698_ Penetrated by Slug. 08701_ ALERT: Potential suspicious activity detected, Programmers report to Factory Zone 1H. Map ----- +----------------------------------------------------+ | ?????????????????????????????????????????????????? | | ?????????????????????????????????????????????????? | | ?????????????????????????????????????????????????? | | ?????????????????????????????????????????????????? | | ????????????????????????????#??#???????????#?????? | | ??????????????????????????????????####???#?##????? | | ????????????????????????#?????#?##????#??#???#???# | | ?????????????????????????#?????????????#?????? ??? | | ?????????????????????????##?##?##?##?#??#??#?#???? | | ?????????????????????###??????##?????###??#?#????? | | "???????????????????????????####?###?###?####? ??? | | "?? ? ???????????????#???###; ? ###?### ?"? | | ? ?? ?"?? ?????????#????#??#; """ #?##?##?" ? | | ? ? ???????#?????????######; #?#?#?# ?? | | ? ???"?"?###???? ??? ? [ ??#### ?? | | "???? ????###?????"" ?"" ?#?#??? | | "? ?? ??" ????##???" """ ; #??#??"? | | ? ?? "?##??#? ?""?""" ; ??? ?? | | "?? ?"?????####? ; ###? ? | | ? ? ??#? ?? """ """ ; ""######## | | ###?####???##?## """ """ % | | ###########?#### """ """ * % | | ### ###?#??# [% | | ######## " " ; | | > ###? "R" ; * | | ### ??## """ @ # % #### | | ### #?# #?########+#+#l ! # # ##?? | | #####/##### * *%= ##?? | | ## ## ######## =%[ | ##?# | | ## """" ## ######?# #?## | | ## """" ## ######?# #### | | ## """" ##+#?###### #?#? | | ## """" # ?# ############ ########## | | ## # # ############ # | | ## # # ############ ! # | | ##"S ] # ""?" + #?#?#?###??# # | | "#""" # """" # #?###???##?# # | | ## "" = # """" # #?#?###???## ! # | | ## #? """" # #####?###### # | | ##+##+####? # ##?####?#### # | | ## ############## ############ # | | #### # + # | | #### ! + ##### # | | #### # ##### # | | + """ """ # ###?# # | | # """ """ # ##?############### | | " # """ """ ### ######+########??#?#?##???? | | " + ##? # #??#?###??#??? | | " ####### ### # #??#?#?#?????? | | " ################### # ##??#?#?#????? | +----------------------------------------------------+ Best States ------------- Heat Dissipation 61 Energy Generation 18 Energy Capacity 290 Matter Stores 300 Matter Capacity 300 Sight Range 16 Terrain Scan Range 16 Terrain Scan Density 210 ECM Strength 2 Jamming Range 12 Armor Coverage 225 Utility Shielding 66 Evasion (%) 44 Recoil Reduction 2 Salvage Targeting 2 Offensive Hacking 20 Item Schematics ----------------- Hacking Suite | -8/Materials | Hacked Imp. Utility Shielding | -8/Materials | Scanalyzed System Shield | -8/Materials | Scanalyzed Arm. Wheel | -7/Factory | Scanalyzed Robot Schematics ------------------ R-06 Scavenger | -7/Factory | Hacked Fabricated ------------ C-17 Slicer | x3 | -7/Factory | Preloaded Arm. Wheel | x2 | -7/Factory Hacking Suite | x1 | -7/Factory Repaired ---------- Lgt. Armor Plating | 10% | -8/Materials Arm. Wheel | 56% | -7/Factory | Broken Arm. Wheel | 40% | -7/Factory Imp. Medium Armor Plating | 15% | -7/Factory Arm. Wheel | 33% | -7/Factory | Broken Arm. Wheel | 13% | -7/Factory Imp. Utility Shielding | 16% | -7/Factory Imp. Terrain Scanner | 31% | -7/Factory Studied --------- Autogun | -8/Materials | Hacked Arm. Wheel | -8/Materials | Hacked EM Pulse Cannon | -8/Materials | Hacked Grenade Launcher | -8/Materials | Hacked Lgt. Nuclear Core | -8/Materials | Hacked Datajack | -7/Factory | Hacked Imp. Deuterium Engine | -7/Factory | Hacked Com. Wheel | -7/Factory | Hacked Alien Tech Used ----------------- None Achievements -------------- Analysis Probe DATA ERROR: Steam Global Achievement% Deductive Reasoning Ew, Corruption Item+ Junior Dev Myspace Not Today, Chutes Organ Harvest Overwhelming There's More Where That Came From Throw Away The Key Challenges ------------ None Game ------ Seed PitchforkEnergyProjector Manual? 0 Play Time 02:51:34 Cumulative 242.8 hours Start 2025.10.27 @ 17:43:55 End 2025.10.27 @ 20:57:18 Sessions 1 Manual Loads 0 Difficulty Rogue Special Mode None Game No. 61 Rogue 61 Adventurer 0 Explorer 0 Win Type - Total 10 Types 5/0/2/0/1/1/0/1/0/0 Lore% 60 Gallery% 72 Achievement% 44 Wizard Run 0 Options --------- Layout 2 ASCII 0 Keyboard 1 Movement Vi Keybinds 0 Fullscreen 1 Font 24/Smallcaps Map View 50x44 Zoom Use 0% Tactical HUD 1 Map Filters NONE Filters NONE Steam 1 RUN: ff2010e7-ccde-4b86-9847-f0e04562ca4f